fUSD/lending_fUSD_20250606
["ID","MTS","AMOUNT","RATE_DAILY","PERIOD"]
[364725173,1749220256306,-839.08,0.00030328,7]
[364725174,1749220256315,-11285.31,0.00030328,7]
[364725175,1749220256324,-1101.15,0.00030328,7]
[364725176,1749220256334,-480.0,0.00030328,7]
[364725177,1749220256343,-3214.08,0.00030328,7]
[364725178,1749220256352,-480.0,0.00030328,7]
[364725179,1749220256361,-480.0,0.00030328,7]
[364725180,1749220256375,-2964.96,0.00030328,7]
[364725181,1749220256384,-873.96,0.00030328,7]
[364725182,1749220256393,-4607.18,0.00030328,7]
[364725183,1749220256403,-480.0,0.00030328,7]
[364725184,1749220256414,-20710.06,0.00030328,7]
[364725185,1749220256423,-480.0,0.00030328,7]
[364725186,1749220256432,-480.0,0.00030328,7]
[364725187,1749220256442,-1067.02,0.00030328,7]
[364725188,1749220256459,-480.0,0.00030328,7]
[364725189,1749220256470,-468.01416028,0.00030328,7]
[364725190,1749220256480,-480.0,0.00030328,7]
[364725191,1749220256489,-612.42,0.00030328,7]
[364725192,1749220256498,-151.0,0.00030328,7]
[364725193,1749220256508,-3585.66,0.00030328,7]
[364725194,1749220256517,-153.223815,0.00030328,7]
[364725195,1749220256527,-480.0,0.00030328,7]
[364725196,1749220256537,-1186.93,0.00030328,7]
[364725197,1749220256546,-480.0,0.00030328,7]
[364725198,1749220256555,-480.0,0.00030328,2]
[364725199,1749220256564,-2364.45,0.00030328,7]
[364725200,1749220256573,-1255.39,0.00030328,7]
[364725201,1749220256582,-480.0,0.00030328,7]
[364725202,1749220256592,-1399.55,0.00030328,7]
[364725203,1749220256600,-491.87,0.00030328,7]
[364725204,1749220256610,-825.25,0.00030328,7]
[364725205,1749220256619,-1108.3,0.00030328,7]
[364725206,1749220256628,-726.54,0.00030328,7]
[364725207,1749220256637,-480.0,0.00030328,7]
[364725208,1749220256647,-2028.66,0.00030328,7]
[364725209,1749220256656,-480.0,0.00030328,7]
[364725210,1749220256667,-1692.8,0.00030328,7]
[364725211,1749220256676,-781.47,0.00030328,7]
[364725212,1749220256685,-1466.18,0.00030328,7]
[364725213,1749220256694,-73191.22,0.00030328,7]
[364725214,1749220256704,-1031.1,0.00030328,7]
[364725215,1749220256712,-2308.95,0.00030328,7]
[364725216,1749220256722,-1187.36,0.00030328,7]
[364725217,1749220256731,-1402.86,0.00030328,7]
[364725218,1749220256740,-1807.35,0.00030328,7]
[364725219,1749220256749,-418.1271711,0.00030328,7]
[364725220,1749220256758,-1648.94,0.00030328,7]
[364725221,1749220256767,-1912.7,0.00030328,7]
[364725222,1749220256776,-4297.8,0.00030328,7]
[364725223,1749220256785,-480.0,0.00030328,7]
[364725224,1749220256794,-1127.05,0.00030328,7]
[364725225,1749220256803,-480.0,0.00030328,7]
[364725226,1749220256812,-1433.3,0.00030328,7]
[364725227,1749220256821,-793.28,0.00030328,7]
[364725228,1749220256830,-300.0,0.00030328,7]
[364725229,1749220256841,-480.0,0.00030328,7]
[364725230,1749220256850,-845.41,0.00030328,7]
[364725231,1749220256859,-1143.75,0.00030328,7]
[364725232,1749220256868,-480.0,0.00030328,7]
[364725233,1749220256877,-4339.46,0.00030328,7]
[364725234,1749220256886,-480.0,0.00030328,7]
[364725235,1749220256895,-550.99,0.00030328,7]
[364725236,1749220256905,-480.0,0.00030328,7]
[364725237,1749220256915,-480.0,0.00030328,7]
[364725238,1749220256924,-558.97,0.00030328,7]
[364725239,1749220256933,-480.0,0.00030328,7]
[364725240,1749220256942,-171.240678,0.00030328,7]
[364725241,1749220256951,-705.32,0.00030328,7]
[364725242,1749220256961,-638.49,0.00030328,7]
[364725243,1749220256970,-171.240678,0.00030328,7]
[364725244,1749220256979,-498.36593938,0.00030328,7]
[364725245,1749220256989,-646.01,0.00030328,7]
[364725246,1749220256998,-171.240678,0.00030328,7]
[364725247,1749220257008,-151.0,0.00030328,7]
[364725248,1749220257018,-171.240678,0.00030328,7]
[364725249,1749220257028,-151.0,0.00030328,7]
[364725250,1749220257037,-480.0,0.00030328,7]
[364725251,1749220257046,-5821.7,0.00030328,7]
[364725252,1749220257056,-480.0,0.00030328,7]
[364725253,1749220257073,-1415.28,0.00030328,7]
[364725254,1749220257082,-480.0,0.00030328,7]
[364725255,1749220257092,-2997.28,0.00030328,7]
[364725256,1749220257101,-480.0,0.00030328,7]
[364725257,1749220257111,-2219.2,0.00030328,7]
[364725258,1749220257120,-151.0,0.00030328,7]
[364725259,1749220257130,-151.0,0.00030328,7]
[364725260,1749220257139,-253.847817,0.00030328,7]
[364725261,1749220257149,-253.847817,0.00030328,7]
[364725262,1749220257159,-480.0,0.00030328,7]
[364725263,1749220257170,-4881.17,0.00030328,7]
[364725264,1749220257180,-1494.8,0.00030328,7]
[364725265,1749220257190,-480.0,0.00030328,7]
[364725266,1749220257200,-480.0,0.00030328,7]
[364725267,1749220257210,-761.61,0.00030328,7]
[364725268,1749220257219,-2109.18,0.00030328,7]
[364725269,1749220257229,-253.847817,0.00030328,7]
[364725270,1749220257239,-253.847817,0.00030328,7]
[364725271,1749220257248,-1044.45,0.00030328,7]
[364725272,1749220257258,-480.0,0.00030328,7]
[364725273,1749220257268,-617.24,0.00030328,7]
[364725274,1749220257278,-6318.65,0.00030328,7]
[364725275,1749220257288,-1804.22,0.00030328,7]
[364725276,1749220257298,-776.29,0.00030328,7]
[364725277,1749220257308,-5806.79,0.00030328,7]
[364725278,1749220257317,-480.0,0.00030328,7]
[364725279,1749220257328,-902.05,0.00030328,7]
[364725280,1749220257337,-480.0,0.00030328,7]
[364725281,1749220257347,-677.86,0.00030328,7]
[364725282,1749220257357,-480.0,0.00030328,7]
[364725283,1749220257370,-17052.87,0.00030328,7]
[364725284,1749220257382,-1448.58,0.00030328,7]
[364725285,1749220257392,-480.0,0.00030328,7]
[364725286,1749220257402,-161.264243,0.00030328,7]
[364725287,1749220257412,-161.264243,0.00030328,7]
[364725288,1749220257424,-480.0,0.00030328,7]
[364725289,1749220257434,-480.0,0.00030328,7]
[364725290,1749220257444,-1087.78,0.00030328,7]
[364725291,1749220257456,-596.02,0.00030328,7]
[364725292,1749220257467,-1086.7,0.00030328,7]
[364725293,1749220257478,-161.264243,0.00030328,7]
[364725294,1749220257487,-161.264243,0.00030328,7]
[364725295,1749220257497,-1926.02,0.00030328,7]
[364725296,1749220257507,-480.0,0.00030328,7]
[364725297,1749220257516,-1310.18,0.00030328,7]
[364725298,1749220257526,-480.01,0.00030328,7]
[364725299,1749220257536,-971.77,0.00030328,7]
[364725300,1749220257546,-2065.59,0.00030328,7]
[364725301,1749220257559,-480.0,0.00030328,7]
[364725302,1749220257570,-13307.39,0.00030328,7]
[364725303,1749220257580,-2324.9,0.00030328,7]
[364725304,1749220257591,-480.0,0.00030328,7]
[364725305,1749220257601,-824.21,0.00030328,7]
[364725306,1749220257611,-480.0,0.00030328,7]
[364725307,1749220257621,-2178.92,0.00030328,7]
[364725308,1749220257631,-3945.0,0.00030328,7]
[364725309,1749220257641,-480.0,0.00030328,7]
[364725310,1749220257652,-480.0,0.00030328,7]
[364725311,1749220257662,-4149.78,0.00030328,7]
[364725312,1749220257674,-3813.84,0.00030328,7]
[364725313,1749220257684,-407.03412895,0.00030328,7]
[364725314,1749220257695,-1365.76,0.00030328,7]
[364725315,1749220257705,-984.68,0.00030328,7]
[364725316,1749220257715,-480.0,0.00030328,7]
[364725317,1749220257726,-904.26,0.00030328,7]
[364725318,1749220257736,-151.0,0.00030328,7]
[364725319,1749220257746,-151.0,0.00030328,7]
[364725320,1749220257757,-151.0,0.00030328,7]
[364725321,1749220257767,-480.0,0.00030328,7]
[364725322,1749220257777,-151.0,0.00030328,7]
[364725323,1749220257787,-1112.93,0.00030328,7]
[364725324,1749220257798,-4903.83,0.00030328,7]
[364725325,1749220257808,-813.56,0.00030328,7]
[364725326,1749220257819,-1976.97,0.00030328,7]
[364725327,1749220257829,-151.0,0.00030328,7]
[364725328,1749220257839,-3642.55,0.00030328,7]
[364725329,1749220257849,-2033.72,0.00030328,7]
[364725330,1749220257860,-480.0,0.00030328,7]
[364725331,1749220257870,-161.836173,0.00030328,7]
[364725332,1749220257881,-1600.26,0.00030328,7]
[364725333,1749220257891,-878.97,0.00030328,7]
[364725334,1749220257902,-480.0,0.00030328,7]
[364725335,1749220257912,-480.0,0.00030328,7]
[364725336,1749220257924,-480.0,0.00030328,7]
[364725337,1749220257935,-948.36,0.00030328,7]
[364725338,1749220257945,-10382.45,0.00030328,7]
[364725339,1749220257956,-520.79,0.00030328,7]
[364725340,1749220257967,-480.0,0.00030328,7]
[364725341,1749220257978,-480.0,0.00030328,7]
[364725342,1749220257989,-3570.9,0.00030328,7]
[364725343,1749220258000,-1399.06,0.00030328,2]
[364725344,1749220258010,-875.0,0.00030328,7]
[364725345,1749220258021,-1610.11,0.00030328,7]
[364725346,1749220258031,-506.97,0.00030328,7]
[364725347,1749220258042,-582.82,0.00030328,7]
[364725348,1749220258052,-1069.2,0.00030328,7]
[364725349,1749220258063,-5037.96,0.00030328,7]
[364725350,1749220258072,-342.82524804,0.00030328,7]
[364725351,1749220258084,-480.0,0.00030328,7]
[364725352,1749220258095,-1221.01,0.00030328,7]
[364725353,1749220258105,-632.52,0.00030328,7]
[364725354,1749220258116,-480.0,0.00030328,7]
[364725355,1749220258127,-480.0,0.00030328,7]
[364725356,1749220258138,-2746.68,0.00030328,7]
[364725357,1749220258148,-1159.49,0.00030328,7]
[364725358,1749220258159,-480.0,0.00030328,7]
[364725359,1749220258170,-1726.11,0.00030328,7]
[364725360,1749220258181,-480.0,0.00030328,7]
[364725361,1749220258191,-480.0,0.00030328,7]
[364725362,1749220258201,-4017.92,0.00030328,7]
[364725363,1749220258212,-4678.49,0.00030328,7]
[364725364,1749220258222,-480.0,0.00030328,7]
[364725365,1749220258232,-480.0,0.00030328,7]
[364725366,1749220258242,-1324.34,0.00030328,7]
[364725367,1749220258252,-576.09,0.00030328,7]
[364725368,1749220258262,-619.71,0.00030328,7]
[364725369,1749220258272,-1223.35,0.00030328,7]
[364725370,1749220258282,-1000.0,0.00030328,7]
[364725371,1749220258292,-480.0,0.00030328,7]
[364725372,1749220258302,-480.0,0.00030328,7]
[364725373,1749220258312,-480.0,0.00030328,7]
[364725374,1749220258323,-480.0,0.00030328,7]
[364725375,1749220258333,-480.0,0.00030328,7]
[364725376,1749220258343,-2298.56,0.00030328,7]
[364725377,1749220258353,-1792.53,0.00030328,7]
[364725378,1749220258364,-783.46,0.00030328,7]
[364725379,1749220258377,-488.06,0.00030328,7]
[364725380,1749220258388,-480.0,0.00030328,7]
[364725381,1749220258399,-480.0,0.00030328,7]
[364725382,1749220258409,-480.0,0.00030328,7]
[364725383,1749220258422,-4227.26,0.00030328,7]
[364725384,1749220258432,-4126.83,0.00030328,7]
[364725385,1749220258442,-985.6,0.00030328,7]
[364725386,1749220258455,-558.35,0.00030328,7]
[364725387,1749220258465,-480.0,0.00030328,7]
[364725388,1749220258474,-480.0,0.00030328,7]
[364725389,1749220258484,-480.0,0.00030328,7]
[364725390,1749220258495,-1349.15,0.00030328,7]
[364725391,1749220258505,-480.0,0.00030328,7]
[364725392,1749220258516,-480.0,0.00030328,7]
[364725393,1749220258526,-480.0,0.00030328,7]
[364725394,1749220258536,-946.38,0.00030328,7]
[364725395,1749220258546,-480.0,0.00030328,7]
[364725396,1749220258556,-1957.15,0.00030328,7]
[364725397,1749220258567,-667.66,0.00030328,7]
[364725398,1749220258576,-1972.33,0.00030328,7]
[364725399,1749220258587,-460.0,0.00030328,7]
[364725400,1749220258598,-869.99,0.00030328,7]
[364725401,1749220258608,-151.0,0.00030328,7]
[364725402,1749220258618,-788.43,0.00030328,7]
[364725403,1749220258629,-151.0,0.00030328,7]
[364725404,1749220258639,-480.0,0.00030328,7]
[364725405,1749220258649,-752.97,0.00030328,7]
[364725406,1749220258661,-480.0,0.00030328,7]
[364725407,1749220258672,-2371.57,0.00030328,7]
[364725408,1749220258683,-491.32292481,0.00030328,7]
[364725409,1749220258693,-480.0,0.00030328,7]
[364725410,1749220258703,-480.0,0.00030328,7]
[364725411,1749220258714,-480.0,0.00030328,7]
[364725412,1749220258725,-601.08,0.00030328,7]
[364725413,1749220258735,-480.0,0.00030328,7]
[364725414,1749220258745,-2258.41,0.00030328,7]
[364725415,1749220258755,-480.0,0.00030328,7]
[364725416,1749220258766,-480.0,0.00030328,7]
[364725417,1749220258776,-617.19,0.00030328,7]
[364725418,1749220258786,-957.11,0.00030328,7]
[364725419,1749220258797,-661.16,0.00030328,7]
[364725420,1749220258807,-480.0,0.00030328,7]
[364725421,1749220258818,-15596.64,0.00030328,7]
[364725422,1749220258828,-494.45253343,0.00030328,7]
[364725423,1749220258839,-480.0,0.00030328,7]
[364725424,1749220258850,-1003.28,0.00030328,7]
[364725425,1749220258860,-480.0,0.00030328,7]
[364725426,1749220258870,-1277.26,0.00030328,7]
[364725427,1749220258881,-480.0,0.00030328,7]
[364725428,1749220258891,-1738.04,0.00030328,7]
[364725429,1749220258900,-846.81,0.00030328,7]
[364725430,1749220258911,-480.0,0.00030328,7]
[364725431,1749220258922,-2129.46,0.00030328,7]
[364725432,1749220258932,-820.16,0.00030328,7]
[364725433,1749220258943,-1214.21,0.00030328,7]
[364725434,1749220258953,-480.0,0.00030328,7]
[364725435,1749220258964,-2196.5,0.00030328,7]
[364725436,1749220258975,-923.4,0.00030328,7]
[364725437,1749220258986,-2461.07,0.00030328,7]
[364725438,1749220258997,-480.0,0.00030328,7]
[364725439,1749220259009,-2342.28,0.00030328,7]
[364725440,1749220259019,-1254.9,0.00030328,7]
[364725441,1749220259029,-2121.81,0.00030328,7]
[364725442,1749220259038,-480.0,0.00030328,7]
[364725443,1749220259048,-1793.96,0.00030328,7]
[364725444,1749220259058,-896.54,0.00030328,7]
[364725445,1749220259068,-686.83,0.00030328,7]
[364725446,1749220259079,-2687.86,0.00030328,7]
[364725447,1749220259091,-496.54214851,0.00030328,7]
[364725448,1749220259100,-480.0,0.00030328,7]
[364725449,1749220259110,-480.0,0.00030328,7]
[364725450,1749220259123,-979.7,0.00030328,7]
[364725451,1749220259133,-820.24,0.00030328,7]
[364725452,1749220259143,-761.13,0.00030328,2]
[364725453,1749220259152,-873.83,0.00030328,7]
[364725454,1749220259161,-1677.25,0.00030328,7]
[364725455,1749220259173,-480.0,0.00030328,7]
[364725456,1749220259182,-1293.09,0.00030328,7]
[364725457,1749220259192,-529.01,0.00030328,7]
[364725458,1749220259202,-1068.09,0.00030328,7]
[364725459,1749220259212,-787.96,0.00030328,7]
[364725460,1749220259222,-480.0,0.00030328,7]
[364725461,1749220259232,-1242.86,0.00030328,7]
[364725462,1749220259242,-11034.26,0.00030328,7]
[364725463,1749220259252,-480.0,0.00030328,7]
[364725464,1749220259263,-480.0,0.00030328,7]
[364725465,1749220259273,-564.91,0.00030328,7]
[364725466,1749220259282,-480.0,0.00030328,7]
[364725467,1749220259292,-480.0,0.00030328,7]
[364725468,1749220259303,-937.81,0.00030328,2]
[364725469,1749220259313,-480.0,0.00030328,7]
[364725470,1749220259324,-480.0,0.00030328,7]
[364725471,1749220259334,-611.7,0.00030328,7]
[364725472,1749220259344,-671.61,0.00030328,7]
[364725473,1749220259353,-699.69,0.00030328,7]
[364725474,1749220259366,-480.0,0.00030328,7]
[364725475,1749220259381,-151.0,0.00030328,7]
[364725476,1749220259633,-2147.96,0.00030328,7]
[364725477,1749220259647,-480.0,0.00030328,7]
[364725478,1749220259657,-489.2446573,0.00030328,7]
[364725479,1749220259667,-168.67287334,0.00030328,7]
[364725480,1749220259677,-279.765778,0.00030328,7]
[364725481,1749220259688,-569.84,0.00030328,7]
[364725482,1749220259698,-806.66,0.00030328,7]
[364725483,1749220259708,-720.25,0.00030328,7]
[364725484,1749220259718,-1417.78,0.00030328,7]
[364725485,1749220259728,-1409.97,0.00030328,7]
[364725486,1749220259739,-480.0,0.00030328,7]
[364725487,1749220259749,-480.0,0.00030328,7]
[364725488,1749220259759,-151.0,0.00030328,7]
[364725489,1749220259768,-480.0,0.00030328,7]
[364725490,1749220259777,-151.0,0.00030328,7]
[364725491,1749220259787,-1915.93,0.00030328,7]
[364725492,1749220259797,-1184.01,0.00030328,7]
[364725493,1749220259807,-1233.97,0.00030328,7]
[364725494,1749220259817,-1107.18,0.00030328,7]
[364725495,1749220259828,-480.0,0.00030328,7]
[364725496,1749220259839,-480.0,0.00030328,7]
[364725497,1749220259848,-151.0,0.00030328,7]
[364725498,1749220259859,-151.0,0.00030328,7]
[364725499,1749220259869,-480.0,0.00030328,7]
[364725500,1749220259879,-480.0,0.00030328,7]
[364725501,1749220259888,-487.20306759,0.00030328,7]
[364725502,1749220259897,-480.0,0.00030328,7]
[364725503,1749220259908,-480.0,0.00030328,7]
[364725504,1749220259919,-150.0,0.0003033,7]
[364725505,1749220259929,-150.0,0.0003033,7]
[364725506,1749220259938,-150.0,0.0003033,7]
[364725507,1749220259947,-150.0,0.0003033,7]
[364725508,1749220259956,-239.4279877,0.00030333,7]
[364725509,1749220259966,-186.88884126,0.00030333,7]
[364725510,1749220259975,-3618.7528792,0.00030336,2]
[364725511,1749220259984,-150.0,0.00030337,7]
[364725512,1749220259994,-150.0,0.0003034,2]
[364725513,1749220260003,-150.0,0.00030346,7]
[364725514,1749220260013,-239.4279877,0.00030347,7]
[364725515,1749220260022,-186.88884126,0.00030347,7]
[364725516,1749220260032,-150.0,0.00030347,7]
[364725517,1749220260042,-434.67087066,0.00030349,2]
[364725518,1749220260052,-150.0,0.00030351,7]
[364725519,1749220260062,-150.0,0.00030352,7]
[364725520,1749220260071,-239.4279877,0.0003036,7]
[364725521,1749220260081,-186.88884126,0.0003036,7]
[364725522,1749220260090,-150.0,0.00030365,7]
[364725523,1749220260099,-150.0,0.00030371,7]
[364725524,1749220260109,-239.4279877,0.00030373,7]
[364725525,1749220260119,-186.88884126,0.00030373,7]
[364725526,1749220260128,-150.0,0.00030374,7]
[364725527,1749220260137,-150.0,0.00030377,2]
[364725528,1749220260147,-150.0,0.00030377,7]
[364725529,1749220260156,-151.0,0.00030378,7]
[364725530,1749220260167,-151.0,0.00030378,7]
[364725531,1749220260177,-239.4279877,0.00030387,7]
[364725532,1749220260187,-186.88884126,0.00030387,7]
[364725533,1749220260197,-150.0,0.00030392,7]
[364725534,1749220260207,-150.0,0.00030393,7]
[364725535,1749220260217,-150.0,0.00030396,7]
[364725536,1749220260226,-2000.0,0.00030399,2]
[364725537,1749220260236,-239.4279877,0.000304,7]
[364725538,1749220260246,-186.88884126,0.000304,7]
[364725539,1749220260256,-102471.47453212,0.000304,10]
[364725540,1749220260266,-367.03774443,0.000304,2]
[364725541,1749220260276,-1874.79374278,0.000304,2]
[364725542,1749220260285,-340858.73267389,0.000304,2]
[364725543,1749220260295,-151.0,0.000304,7]
[364725544,1749220260305,-151.0,0.000304,7]
[364725545,1749220260315,-151.0,0.000304,7]
[364725546,1749220260324,-151.0,0.000304,7]
[364725547,1749220260334,-151.0,0.000304,7]
[364725548,1749220260344,-151.0,0.000304,7]
[364725549,1749220260354,-151.0,0.000304,7]
[364725550,1749220260366,-210.982028,0.000304,7]
[364725551,1749220260377,-210.982028,0.000304,7]
[364725552,1749220260387,-151.0,0.000304,7]
[364725553,1749220260397,-174.569528,0.000304,7]
[364725554,1749220260406,-151.0,0.000304,7]
[364725555,1749220260417,-151.0,0.000304,7]
[364725556,1749220260426,-151.0,0.000304,7]
[364725557,1749220260436,-164.396546,0.000304,7]
[364725558,1749220260445,-164.396546,0.000304,7]
[364725559,1749220260456,-151.0,0.000304,7]
[364725560,1749220260466,-151.0,0.000304,7]
[364725561,1749220260475,-387.0,0.000304,2]
[364725562,1749220260486,-151.0,0.000304,7]
[364725563,1749220260495,-151.0,0.000304,7]
[364725564,1749220260505,-151.0,0.000304,7]
[364725565,1749220260514,-173.795224,0.000304,7]
[364725566,1749220260523,-173.795224,0.000304,7]
[364725567,1749220260532,-151.0,0.000304,7]
[364725568,1749220260542,-151.0,0.000304,7]
[364725569,1749220260551,-165.046603,0.000304,7]
[364725570,1749220260560,-165.046603,0.000304,7]
[364725571,1749220260569,-151.0,0.000304,7]
[364725572,1749220260579,-178.626492,0.000304,7]
[364725573,1749220260588,-178.626492,0.000304,7]
[364725574,1749220260598,-1360.080029,0.000304,7]
[364725575,1749220260607,-1360.080029,0.000304,7]
[364725576,1749220260617,-151.0,0.000304,7]
[364725577,1749220260627,-151.0,0.000304,7]
[364725578,1749220260637,-247.89101,0.000304,7]
[364725579,1749220260646,-151.0,0.000304,7]
[364725580,1749220260655,-151.0,0.000304,7]
[364725581,1749220260664,-151.0,0.000304,7]
[364725582,1749220260674,-242.735552,0.000304,7]
[364725583,1749220260683,-242.735552,0.000304,7]
[364725584,1749220260693,-151.0,0.000304,7]
[364725585,1749220260702,-151.0,0.000304,7]
[364725586,1749220260711,-151.0,0.000304,7]
[364725587,1749220260721,-151.0,0.000304,7]
[364725588,1749220260730,-839.7152,0.000304,7]
[364725589,1749220260740,-839.7152,0.000304,7]
[364725590,1749220260750,-151.0,0.000304,7]
[364725591,1749220260759,-151.0,0.000304,7]
[364725592,1749220260768,-234.971268,0.000304,7]
[364725593,1749220260778,-234.971268,0.000304,7]
[364725594,1749220260787,-151.0,0.000304,7]
[364725595,1749220260797,-151.0,0.000304,7]
[364725596,1749220260806,-151.0,0.000304,7]
[364725597,1749220260815,-151.0,0.000304,7]
[364725598,1749220260825,-151.0,0.000304,7]
[364725599,1749220260836,-151.0,0.000304,7]
[364725600,1749220260846,-151.0,0.000304,7]
[364725601,1749220260856,-1362.899122,0.000304,7]
[364725602,1749220260866,-1362.899122,0.000304,7]
[364725603,1749220260876,-151.0,0.000304,7]
[364725604,1749220260886,-151.0,0.000304,7]
[364725605,1749220260895,-224.971363,0.000304,7]
[364725606,1749220260904,-151.0,0.000304,7]
[364725607,1749220260913,-224.971363,0.000304,7]
[364725608,1749220260924,-151.0,0.000304,7]
[364725609,1749220260933,-151.0,0.000304,7]
[364725610,1749220260942,-151.0,0.000304,7]
[364725611,1749220260951,-6539.273502,0.000304,7]
[364725612,1749220260960,-151.0,0.000304,7]
[364725613,1749220260970,-1057.697866,0.000304,7]
[364725614,1749220260979,-1057.697866,0.000304,7]
[364725615,1749220260988,-151.0,0.000304,7]
[364725616,1749220260998,-151.0,0.000304,7]
[364725617,1749220261008,-346.563624,0.000304,7]
[364725618,1749220261018,-173.991683,0.000304,7]
[364725619,1749220261027,-151.0,0.000304,7]
[364725620,1749220261036,-346.563624,0.000304,7]
[364725621,1749220261047,-151.0,0.000304,7]
[364725622,1749220261056,-151.0,0.000304,7]
[364725623,1749220261066,-151.0,0.000304,7]
[364725624,1749220261075,-151.0,0.000304,7]
[364725625,1749220261084,-151.0,0.000304,7]
[364725626,1749220261093,-151.0,0.000304,7]
[364725627,1749220261103,-165.885412,0.000304,7]
[364725628,1749220261111,-165.885412,0.000304,7]
[364725629,1749220261121,-151.0,0.000304,7]
[364725630,1749220261130,-296.887823,0.000304,7]
[364725631,1749220261139,-296.887823,0.000304,7]
[364725632,1749220261148,-381.543116,0.000304,7]
[364725633,1749220261158,-381.543116,0.000304,7]
[364725634,1749220261167,-159.0,0.000304,22]
[364725635,1749220261176,-171.240678,0.000304,7]
[364725636,1749220261186,-151.0,0.000304,7]
[364725637,1749220261196,-171.240678,0.000304,7]
[364725638,1749220261206,-151.0,0.000304,7]
[364725639,1749220261216,-253.847817,0.000304,7]
[364725640,1749220261225,-253.847817,0.000304,7]
[364725641,1749220261235,-161.264243,0.000304,7]
[364725642,1749220261244,-161.264243,0.000304,7]
[364725643,1749220261254,-151.0,0.000304,7]
[364725644,1749220261264,-151.0,0.000304,7]
[364725645,1749220261273,-151.0,0.000304,7]
[364725646,1749220261283,-151.0,0.000304,7]
[364725647,1749220261292,-2197.0,0.000304,2]
[364725648,1749220261302,-151.0,0.000304,7]
[364725649,1749220261311,-151.0,0.000304,7]
[364725650,1749220261321,-150.0,0.00030403,2]
[364725651,1749220261330,-150.0,0.00030409,7]
[364725652,1749220261340,-150.0,0.00030413,7]
[364725653,1749220261350,-239.4279877,0.00030413,7]
[364725654,1749220261359,-186.88884126,0.00030413,7]
[364725655,1749220261370,-150.0,0.00030417,7]
[364725656,1749220261384,-150.0,0.00030418,7]
[364725657,1749220261393,-150.0,0.00030421,7]
[364725658,1749220261403,-150.0,0.00030424,2]
[364725659,1749220261412,-239.4279877,0.00030427,7]
[364725660,1749220261423,-186.88884126,0.00030427,7]
[364725661,1749220261433,-150.0,0.00030429,2]
[364725662,1749220261443,-150.0,0.00030433,7]
[364725663,1749220261453,-239.4279877,0.0003044,7]
[364725664,1749220261463,-186.88884126,0.0003044,7]
[364725665,1749220261472,-150.0,0.0003044,7]
[364725666,1749220261482,-150.0,0.0003044,7]
[364725667,1749220261491,-150.0,0.0003044,7]
[364725668,1749220261500,-150.0,0.0003044,7]
[364725669,1749220261509,-223.0,0.00030447,14]
[364725670,1749220261518,-150.0,0.00030449,7]
[364725671,1749220261528,-239.4279877,0.00030453,7]
[364725672,1749220261538,-186.88884126,0.00030453,7]